fUST/lending_fUST_20260121
["ID","MTS","AMOUNT","RATE_DAILY","PERIOD"]
[402942724,1769002232391,-500.0,0.0001382,2]
[402942726,1769002232400,-500.0,0.0001382,2]
[402942728,1769002232408,-500.0,0.0001382,2]
[402942730,1769002232418,-500.0,0.0001382,2]
[402942732,1769002232429,-500.0,0.0001382,2]
[402942734,1769002232439,-500.0,0.0001382,2]
[402942736,1769002232448,-50000.0,0.00013821,2]
[402942738,1769002232458,-1000.0,0.00013821,2]
[402942740,1769002232467,-229.79352556,0.00014206,2]
[402942742,1769002232476,-500.0,0.00014245,2]
[402942744,1769002232487,-500.0,0.00014245,2]
[402942746,1769002232496,-266.25453486,0.00014245,2]
[402942748,1769002232505,-500.0,0.00014245,2]
[402942750,1769002232514,-500.0,0.00014245,2]
[402942752,1769002232522,-500.0,0.00014245,2]
[402942754,1769002232532,-500.0,0.00014245,2]
[402942755,1769002232541,-952.20987354,0.00014247,2]
[402942757,1769002232551,-1000.0,0.00014247,2]
[402942758,1769002232560,-1500.0,0.00014368,2]
[402942759,1769002232569,-1500.0,0.00014795,2]
[402942760,1769002232578,-2000.0,0.00014916,2]
[402942761,1769002232587,-4000.0,0.00015,2]
[402942762,1769002232596,-760.63060673,0.00015,2]
[402942763,1769002232605,-420.0,0.00015011,2]
[402942764,1769002232615,-1246.0,0.00015067,2]
[402942765,1769002232624,-500.0,0.00015342,2]
[402942766,1769002232634,-302.52,0.000154,7]
[402942767,1769002232644,-284.14421382,0.00015405,2]
[402942768,1769002232654,-2500.0,0.00015464,2]
[402942769,1769002232664,-800.0,0.00015749,30]
[402942770,1769002232673,-800.0,0.00015749,30]
[402942771,1769002232683,-800.0,0.00015749,30]
[402942772,1769002232692,-800.0,0.00015749,30]
[402942773,1769002232701,-800.0,0.00015749,30]
[402942774,1769002232711,-800.0,0.00015749,30]
[402942775,1769002232720,-800.0,0.00015749,30]
[402942776,1769002232730,-800.0,0.00015749,30]
[402942777,1769002232739,-800.0,0.00015749,30]
[402942778,1769002232749,-800.0,0.00015749,30]
[402942779,1769002232758,-800.0,0.00015749,30]
[402942780,1769002232767,-800.0,0.00015749,30]
[402942781,1769002232777,-1000.0,0.00015749,30]
[402942782,1769002232786,-286.5314506,0.00016206,2]
[402942783,1769002232795,-264.84677522,0.00016206,2]
[402942791,1769002233003,-587.0,0.00016451,2]
[402942793,1769002233013,-24767.90958125,0.00016514,2]
[402942794,1769002233022,-500.0,0.00016613,2]
[402942796,1769002233031,-388.0993389,0.00016613,2]
[402942798,1769002233041,-2060.41,0.00016651,2]
[402942800,1769002233050,-5000.0,0.00017497,2]
[402942802,1769002233060,-22418.94057128,0.00017498,2]
[402942804,1769002233072,-1543.16857932,0.00017498,2]
[402942806,1769002233083,-988.57473205,0.00017498,2]
[402942994,1769002242987,-250.95500002,0.00017498,2]
[402942999,1769002245916,-888.0993389,0.00017498,2]
[402943020,1769002706233,321.6,0.000154,120]
[402943021,1769002734366,150.0,8.551e-05,2]
[402943028,1769002834098,5000.0,8.876e-05,2]
[402943030,1769002988352,4460.0,0.000154,120]
[402943035,1769003253124,-546.0,9.005e-05,2]
[402943036,1769003253167,-197.13236591,9.005e-05,2]
[402943037,1769003253203,-192.24562298,0.00011005,2]
[402943148,1769003433024,-193.81417468,0.00012003,2]
[402943150,1769003433033,-589.0,0.00012003,2]
[402943152,1769003433042,-225.44049978,0.00013,2]
[402943305,1769003437976,-274.55950022,0.00013,2]
[402943308,1769003437992,-256.1401688,0.00013112,2]
[402943310,1769003438007,-500.0,0.00013273,2]
[402943313,1769003438021,-450.37578874,0.00013611,2]
[402943316,1769003438035,-300.0,0.0001371,2]
[402943318,1769003438051,-281.0,0.0001371,2]
[402943321,1769003438066,-1200.0,0.0001371,2]
[402943323,1769003438081,-494.68560927,0.0001371,2]
[402943326,1769003438097,-222.14240575,0.0001371,2]
[402943329,1769003438114,-500.0,0.0001371,2]
[402943331,1769003438129,-500.0,0.0001371,2]
[402943334,1769003438145,-500.0,0.0001371,2]
[402943337,1769003438160,-500.0,0.0001371,2]
[402943339,1769003438176,-500.0,0.0001371,2]
[402943342,1769003438192,-500.0,0.0001371,2]
[402943344,1769003438206,-300.80023623,0.0001371,2]
[402943347,1769003438221,-487.37583393,0.0001371,2]
[402943349,1769003438236,-500.0,0.0001371,2]
[402943352,1769003438250,-500.0,0.0001371,2]
[402943354,1769003438265,-500.0,0.0001371,2]
[402943356,1769003438280,-500.0,0.0001371,2]
[402943359,1769003438296,-650.0,0.0001371,2]
[402943361,1769003438311,-637.5230398,0.0001371,2]
[402943364,1769003438325,-500.0,0.0001371,2]
[402943367,1769003438340,-500.0,0.0001371,2]
[402943369,1769003438356,-500.0,0.0001371,2]
[402943372,1769003438370,-500.0,0.0001371,2]
[402943374,1769003438385,-500.0,0.0001371,2]
[402943377,1769003438399,-500.0,0.0001371,2]
[402943380,1769003438415,-500.0,0.0001371,2]
[402943382,1769003438428,-500.0,0.0001371,2]
[402943385,1769003438443,-500.0,0.0001371,2]
[402943387,1769003438453,-500.0,0.0001371,2]
[402943389,1769003438462,-500.0,0.0001371,2]
[402943391,1769003438471,-500.0,0.0001371,2]
[402943393,1769003438481,-500.0,0.0001371,2]
[402943423,1769003438756,-300.0,0.00013711,2]
[402943429,1769003438798,-37872.44002638,0.00013712,2]
[402943453,1769003440210,-2784.10604309,0.00013712,2]
[402943454,1769003440219,-432.86696851,0.00013716,2]
[402943455,1769003440228,-1345.47969038,0.00013716,2]
[402943456,1769003440239,-4794.68391917,0.00013716,2]
[402943475,1769003443354,-3212.99999999,0.00013716,2]
[402943482,1769003446042,-678.749689,0.00013716,2]
[402943483,1769003446053,-41127.13567459,0.00013716,2]
[402943548,1769004454122,-1992.05827722,0.0001213,2]
[402943550,1769004482005,5999.98295721,3e-05,2]
[402943551,1769004547207,-3007.94172278,0.0001213,2]
[402943552,1769004547250,-1564.3631765,0.00012252,2]
[402943553,1769004547296,-199.43400611,0.00012879,2]
[402943554,1769004547340,-300.0,0.00013007,2]
[402943555,1769004547366,-300.0,0.00013008,2]
[402943556,1769004547386,-1200.0,0.00013008,2]
[402943557,1769004547407,-455.31898482,0.00013009,2]
[402943562,1769004632194,-5000.0,0.00012879,2]
[402943563,1769004632203,-602.0,0.00012879,2]
[402943564,1769004632213,-300.0,0.00013008,2]
[402943565,1769004632223,-44.68101518,0.00013009,2]
[402943566,1769004632232,-500.0,0.00013009,2]
[402943567,1769004632242,-500.0,0.00013009,2]
[402943568,1769004632251,-495.73731947,0.00013129,2]
[402943569,1769004632260,-892.32717505,0.00013129,2]
[402943570,1769004632269,-1586.35942232,0.00013129,2]
[402943571,1769004632278,-244.96798621,0.00013129,2]
[402943605,1769004638918,-476.32654036,0.00013129,2]
[402943608,1769004638930,-1757.3920708,0.00013129,2]
[402943610,1769004638941,-164.0651717,0.00013129,2]
[402943614,1769004638977,-550.99982705,0.00013129,2]
[402943616,1769004638987,-1126.4470825,0.00013235,2]
[402943618,1769004638996,-207.29716008,0.00013273,2]
[402943620,1769004639006,-394.07881513,0.00013503,2]
[402943622,1769004639015,-346.27992649,0.00013602,2]
[402943624,1769004639025,-500.0,0.00013602,2]
[402943626,1769004639035,-500.0,0.00013602,2]
[402943628,1769004639046,-500.0,0.00013602,2]
[402943630,1769004639055,-500.0,0.00013602,2]
[402943632,1769004639065,-572.42090741,0.00013602,2]
[402943634,1769004639079,-500.0,0.00013602,2]
[402943636,1769004639089,-500.0,0.00013602,2]
[402943638,1769004639099,-500.0,0.00013602,2]
[402943640,1769004639111,-500.0,0.00013602,2]
[402943642,1769004639122,-500.0,0.00013602,2]
[402943644,1769004639131,-500.0,0.00013602,2]
[402943646,1769004639141,-500.0,0.00013602,2]
[402943666,1769004639324,-500.0,0.00013602,2]
[402943670,1769004639350,-500.0,0.00013602,2]
[402943672,1769004639366,-376.42359514,0.00013602,2]
[402943674,1769004639376,-500.0,0.00013602,2]
[402943676,1769004639386,-500.0,0.00013602,2]
[402943678,1769004639411,-500.0,0.00013602,2]
[402943681,1769004639421,-500.0,0.00013602,2]
[402943683,1769004639431,-500.0,0.00013602,2]
[402943685,1769004639441,-500.0,0.00013602,2]
[402943686,1769004639450,-500.0,0.00013602,2]
[402943689,1769004639459,-500.0,0.00013602,2]
[402943690,1769004639468,-500.0,0.00013602,2]
[402943693,1769004639477,-500.0,0.00013602,2]
[402943695,1769004639487,-500.0,0.00013602,2]
[402943696,1769004639496,-554.11716699,0.00013602,2]
[402943699,1769004639505,-500.0,0.00013602,2]
[402943701,1769004639514,-500.0,0.00013602,2]
[402943702,1769004639523,-500.0,0.00013602,2]
[402943704,1769004639533,-500.0,0.00013602,2]
[402943707,1769004639543,-500.0,0.00013602,2]
[402943708,1769004639552,-500.0,0.00013602,2]
[402943711,1769004639562,-500.0,0.00013602,2]
[402943712,1769004639572,-500.0,0.00013602,2]
[402943714,1769004639582,-500.0,0.00013602,2]
[402943717,1769004639591,-500.0,0.00013602,2]
[402943719,1769004639601,-500.0,0.00013602,2]
[402943720,1769004639616,-500.0,0.00013602,2]
[402943722,1769004639625,-500.0,0.00013602,2]
[402943724,1769004639635,-500.0,0.00013602,2]
[402943727,1769004639644,-500.0,0.00013602,2]
[402943730,1769004639654,-500.0,0.00013602,2]
[402943732,1769004639663,-500.0,0.00013602,2]
[402943733,1769004639672,-500.0,0.00013602,2]
[402943735,1769004639682,-500.0,0.00013602,2]
[402943736,1769004639691,-500.0,0.00013602,2]
[402943738,1769004639700,-500.0,0.00013602,2]
[402943740,1769004639709,-221.83270086,0.00013602,2]
[402943742,1769004639718,-500.0,0.00013602,2]
[402943744,1769004639727,-500.0,0.00013602,2]
[402943746,1769004639737,-500.0,0.00013602,2]
[402943748,1769004639746,-500.0,0.00013602,2]
[402943750,1769004639757,-500.0,0.00013602,2]
[402943752,1769004639767,-500.0,0.00013602,2]
[402943754,1769004639776,-32162.17520289,0.0001361,2]
[402943756,1769004639787,-3879.26383865,0.0001361,2]
[402944142,1769005137133,485.0,8.876e-05,2]
[402944145,1769005149389,197.5315497,8.876e-05,2]
[402944146,1769005157580,1386.74419406,8.876e-05,2]
[402944147,1769005206627,544.0,8.876e-05,2]
[402944148,1769005229510,5000.0,8.876e-05,2]
[402944149,1769005252910,3050.43244963,8.876e-05,2]
[402944152,1769005385668,-333.0,8.876e-05,2]
[402944269,1769005613127,-517.72364802,0.00010549,2]
[402944271,1769005645109,-560.24220035,0.00010549,2]
[402944272,1769005645138,-213.03506688,0.00010602,2]
[402944273,1769005645160,-1856.2579976,0.00012435,2]
[402944274,1769005645185,-251.38137892,0.00012602,2]
[402944275,1769005645207,-500.0,0.00013234,2]
[402944276,1769005645226,-500.0,0.00013371,2]
[402944277,1769005645247,-344.8189633,0.00013408,2]
[402944278,1769005645267,-578.84615003,0.00013466,2]
[402944316,1769005743435,150.0,7.832e-05,2]
[402944376,1769005832396,-874.63818407,0.00013331,2]
[402944377,1769005832410,-515.76575543,0.00013331,2]
[402944378,1769005832424,-27.23424457,0.00013466,2]
[402944379,1769005832443,-405.98317002,0.00013466,2]
[402944380,1769005832456,-118.88177534,0.00013466,2]
[402944418,1769005838417,-2895.38347405,0.00013198,2]
[402944419,1769005838479,-717.87233189,0.00013198,2]
[402944420,1769005838490,-6585.88293892,0.00013408,2]
[402944512,1769005840576,-1577.75628976,0.00013408,2]
[402944535,1769005840780,-299.69701098,0.00013408,2]
[402945062,1769005871709,150.0,8.405e-05,2]
[402945063,1769005872138,150.0,8.805e-05,2]
[402945064,1769005872534,150.0,9.205e-05,2]
[402945065,1769005872937,150.0,9.605e-05,2]
[402945066,1769005873332,150.0,0.00010005,2]
[402945067,1769005874050,150.0,0.00010406,2]
[402945069,1769005874169,105.73831007,0.00010806,2]
[402945076,1769005939367,150.0,8.37e-05,2]
[402945077,1769005939769,150.0,8.768e-05,2]
[402945106,1769006709389,-1000.0,9.752e-05,2]
[402945107,1769006711580,-1000.0,9.752e-05,2]
[402945108,1769006712525,-1000.0,9.752e-05,2]
[402945109,1769006712883,-1000.0,9.752e-05,2]
[402945110,1769006713351,-1000.0,9.752e-05,2]
[402945111,1769006713590,-1000.0,9.85e-05,2]
[402945112,1769006714075,-200.0,9.85e-05,2]
[402945113,1769006714097,-800.0,9.851e-05,2]
[402945114,1769006714317,-1000.0,9.851e-05,2]
[402945115,1769006714674,-1000.0,9.851e-05,2]
[402945116,1769006715045,-1000.0,9.851e-05,2]
[402945117,1769006715374,-1000.0,9.851e-05,2]
[402945118,1769006715728,-200.0,9.851e-05,2]
[402945119,1769006715749,-300.0,9.948e-05,2]
[402945120,1769006715771,-300.0,9.948e-05,2]
[402945121,1769006715792,-200.0,9.948e-05,2]
[402945122,1769006716079,-100.0,9.948e-05,2]
[402945123,1769006716099,-300.0,9.949e-05,2]
[402945124,1769006716118,-300.0,9.949e-05,2]
[402945125,1769006716139,-300.0,9.951e-05,2]
[402945126,1769006716437,-1000.0,9.951e-05,2]
[402945127,1769006716820,-1000.0,9.951e-05,2]
[402945128,1769006717174,-1000.0,9.951e-05,2]
[402945129,1769006717588,-1000.0,9.951e-05,2]
[402945130,1769006718275,-700.0,9.951e-05,2]
[402945133,1769006722548,300.0,0.0001,2]
[402945134,1769006722571,1000.0,0.0001,2]
[402945135,1769006722595,1000.0,0.0001,2]
[402945136,1769006722617,1000.0,0.0001,2]
[402945137,1769006722639,1000.0,0.0001,2]
[402945138,1769006722660,700.0,0.0001,2]
[402945155,1769006766961,-1000.0,9.803e-05,2]
[402945156,1769006768532,-1000.0,9.803e-05,2]
[402945157,1769006768964,-1000.0,9.803e-05,2]
[402945158,1769006769324,-1000.0,9.803e-05,2]
[402945159,1769006769696,-1000.0,9.803e-05,2]
[402945160,1769006770018,-1000.0,9.902e-05,2]
[402945161,1769006770365,-1000.0,9.902e-05,2]
[402945162,1769006770722,-1000.0,9.902e-05,2]
[402945163,1769006771065,-1000.0,9.902e-05,2]
[402945164,1769006771436,-1000.0,9.902e-05,2]
[402945173,1769006863702,-1000.0,9.803e-05,2]
[402945174,1769006864090,-1000.0,9.803e-05,2]
[402945175,1769006864554,-1000.0,9.803e-05,2]
[402945176,1769006864942,-1000.0,9.803e-05,2]
[402945177,1769006865274,-1000.0,9.803e-05,2]
[402945178,1769006865578,-1000.0,9.902e-05,2]
[402945179,1769006865917,-1000.0,9.902e-05,2]
[402945180,1769006866472,-763.20885166,9.902e-05,2]
[402945181,1769006876849,-300.0,0.00010001,2]
[402945182,1769006876870,-700.0,0.00010002,2]
[402945183,1769006880016,-1000.0,0.00010002,2]
[402945184,1769006880367,-1000.0,0.00010002,2]
[402945185,1769006880723,-1000.0,0.00010002,2]
[402945186,1769006881072,-1000.0,0.00010002,2]
[402945187,1769006881435,-300.0,0.00010002,2]
[402945188,1769006885786,700.0,0.000101,2]
[402945189,1769006885808,1000.0,0.000101,2]
[402945190,1769006885829,1000.0,0.000101,2]
[402945191,1769006885850,1000.0,0.000101,2]
[402945192,1769006885870,1000.0,0.000101,2]
[402945193,1769006885891,300.0,0.000101,2]
[402945288,1769007038615,-2951.55229638,9.902e-05,2]
[402945296,1769007038677,-2048.44770362,9.902e-05,2]
[402945298,1769007038686,-559.0,9.902e-05,2]
[402945300,1769007038696,-2270.55878348,0.00010002,2]
[402945302,1769007038705,-249.95301508,0.00010202,2]
[402945304,1769007038714,-222.0,0.000103,2]
[402945306,1769007038723,-99.66324648,0.0001036,2]
[402945489,1769007040769,-1100.33675352,0.0001036,2]
[402945491,1769007040782,-300.0,0.00010361,2]
[402945493,1769007040792,-300.0,0.00010361,2]
[402945495,1769007040801,-300.0,0.00010361,2]
[402945497,1769007040810,-225.60407506,0.00010362,2]
[402945553,1769007041328,-21.21623103,0.00010362,2]
[402945555,1769007041337,-321.91976361,0.00010362,2]
[402945557,1769007041349,-178.08023639,0.00010362,2]
[402945559,1769007041358,-207.73533361,0.00010362,2]
[402945834,1769007043894,-292.26466639,0.00010362,2]
[402945836,1769007043904,-500.0,0.00010362,2]
[402945838,1769007043913,-500.0,0.00010362,2]
[402945840,1769007043922,-422.21039055,0.00010362,2]
[402945843,1769007043932,-500.0,0.00010362,2]
[402945846,1769007043940,-500.0,0.00010362,2]
[402945849,1769007043949,-500.0,0.00010362,2]
[402945851,1769007043958,-500.0,0.00010362,2]
[402945853,1769007043967,-500.0,0.00010362,2]
[402945855,1769007043975,-500.0,0.00010362,2]
[402945857,1769007043985,-500.0,0.00010362,2]
[402945859,1769007043994,-500.0,0.00010362,2]
[402945861,1769007044003,-500.0,0.00010362,2]
[402945863,1769007044012,-500.0,0.00010362,2]
[402945865,1769007044021,-500.0,0.00010362,2]
[402945867,1769007044030,-500.0,0.00010362,2]
[402945868,1769007044039,-500.0,0.00010362,2]
[402945870,1769007044048,-500.0,0.00010362,2]
[402945872,1769007044057,-500.0,0.00010362,2]
[402945875,1769007044074,-500.0,0.00010362,2]
[402945878,1769007044088,-500.0,0.00010362,2]
[402945880,1769007044098,-500.0,0.00010362,2]
[402945882,1769007044107,-500.0,0.00010362,2]
[402945884,1769007044117,-189.51144464,0.00010362,2]
[402945885,1769007044126,-500.0,0.00010362,2]
[402945888,1769007044136,-500.0,0.00010362,2]
[402945889,1769007044146,-500.0,0.00010362,2]
[402945891,1769007044155,-474.23867384,0.00010362,2]
[402945893,1769007044165,-500.0,0.00010362,2]
[402945895,1769007044175,-500.0,0.00010362,2]
[402945897,1769007044184,-500.0,0.00010362,2]
[402945899,1769007044194,-500.0,0.00010362,2]
[402945901,1769007044204,-500.0,0.00010362,2]
[402945903,1769007044213,-500.0,0.00010362,2]
[402945905,1769007044222,-500.0,0.00010362,2]
[402945907,1769007044232,-500.0,0.00010362,2]
[402945910,1769007044242,-500.0,0.00010362,2]
[402945912,1769007044251,-500.0,0.00010362,2]
[402945914,1769007044261,-500.0,0.00010362,2]
[402945916,1769007044271,-500.0,0.00010362,2]
[402945918,1769007044281,-500.0,0.00010362,2]
[402945920,1769007044291,-500.0,0.00010362,2]
[402945922,1769007044300,-422.93409854,0.00010362,2]
[402945924,1769007044310,-500.0,0.00010362,2]
[402945926,1769007044320,-500.0,0.00010362,2]
[402945928,1769007044331,-500.0,0.00010362,2]
[402945930,1769007044341,-500.0,0.00010362,2]
[402945932,1769007044350,-500.0,0.00010362,2]
[402945934,1769007044360,-500.0,0.00010362,2]
[402945936,1769007044370,-500.0,0.00010362,2]
[402945937,1769007044379,-500.0,0.00010362,2]
[402945939,1769007044388,-500.0,0.00010362,2]
[402945941,1769007044398,-500.0,0.00010362,2]
[402945944,1769007044408,-500.0,0.00010362,2]
[402945946,1769007044417,-500.0,0.00010362,2]
[402945948,1769007044426,-500.0,0.00010362,2]
[402945949,1769007044436,-500.0,0.00010362,2]
[402945952,1769007044446,-500.0,0.00010362,2]
[402945954,1769007044455,-500.0,0.00010362,2]
[402945955,1769007044465,-500.0,0.00010362,2]
[402945957,1769007044474,-500.0,0.00010362,2]
[402945959,1769007044483,-500.0,0.00010362,2]
[402945961,1769007044493,-500.0,0.00010362,2]
[402945963,1769007044503,-500.0,0.00010362,2]
[402945965,1769007044512,-500.0,0.00010362,2]
[402945967,1769007044521,-500.0,0.00010362,2]
[402945970,1769007044531,-500.0,0.00010362,2]
[402945971,1769007044541,-500.0,0.00010362,2]
[402945973,1769007044550,-500.0,0.00010362,2]
[402945975,1769007044559,-500.0,0.00010362,2]
[402945977,1769007044569,-500.0,0.00010362,2]
[402945979,1769007044580,-500.0,0.00010362,2]
[402945982,1769007044590,-500.0,0.00010362,2]
[402945983,1769007044601,-500.0,0.00010362,2]
[402945985,1769007044610,-500.0,0.00010362,2]
[402945986,1769007044620,-500.0,0.00010362,2]
[402945987,1769007044629,-500.0,0.00010362,2]
[402945988,1769007044638,-500.0,0.00010362,2]
[402945989,1769007044647,-500.0,0.00010362,2]
[402945990,1769007044656,-500.0,0.00010362,2]
[402945991,1769007044665,-500.0,0.00010362,2]
[402945992,1769007044674,-500.0,0.00010362,2]
[402945993,1769007044683,-500.0,0.00010362,2]
[402945994,1769007044692,-500.0,0.00010362,2]
[402945995,1769007044701,-500.0,0.00010362,2]
[402945996,1769007044710,-500.0,0.00010362,2]
[402945997,1769007044720,-500.0,0.00010362,2]
[402945998,1769007044729,-500.0,0.00010362,2]
[402946004,1769007044916,-500.0,0.00010362,2]
[402946009,1769007044970,-477.87289146,0.00010362,2]
[402946011,1769007044980,-500.0,0.00010362,2]
[402946013,1769007044990,-500.0,0.00010362,2]
[402946015,1769007044999,-500.0,0.00010362,2]
[402946017,1769007045008,-423.89364457,0.00010362,2]
[402946018,1769007045018,-500.0,0.00010362,2]
[402946020,1769007045027,-500.0,0.00010362,2]
[402946022,1769007045037,-500.0,0.00010362,2]
[402946024,1769007045046,-500.0,0.00010362,2]
[402946026,1769007045055,-500.0,0.00010362,2]
[402946028,1769007045065,-500.0,0.00010362,2]
[402946030,1769007045074,-500.0,0.00010362,2]
[402946033,1769007045083,-500.0,0.00010362,2]
[402946034,1769007045093,-500.0,0.00010362,2]
[402946036,1769007045102,-500.0,0.00010362,2]
[402946038,1769007045112,-500.0,0.00010362,2]
[402946040,1769007045121,-500.0,0.00010362,2]
[402946042,1769007045131,-500.0,0.00010362,2]
[402946044,1769007045139,-500.0,0.00010362,2]
[402946047,1769007045149,-400.00000001,0.00010362,2]
[402946049,1769007045159,-500.0,0.00010362,2]
[402946050,1769007045168,-500.0,0.00010362,2]
[402946053,1769007045179,-500.0,0.00010362,2]
[402946055,1769007045188,-500.0,0.00010362,2]
[402946056,1769007045198,-500.0,0.00010362,2]
[402946059,1769007045207,-500.0,0.00010362,2]
[402946061,1769007045217,-500.0,0.00010362,2]
[402946063,1769007045226,-500.0,0.00010362,2]
[402946064,1769007045235,-500.0,0.00010362,2]
[402946066,1769007045244,-300.0,0.00010362,2]
[402946068,1769007045254,-306.94174746,0.00010362,2]
[402946070,1769007045263,-2394.32685434,0.00010367,2]
[402946076,1769007045303,-5719.07545686,0.00010367,2]
[402946078,1769007045312,-420.0,0.00011393,2]
[402946080,1769007045321,-1680.0,0.00011396,2]
[402946081,1769007045331,-300.0,0.00011398,2]
[402946083,1769007045340,-384.58,0.000118,2]
[402946085,1769007045350,-19.10312491,0.00012202,2]
[402946088,1769007045361,-275.84143288,0.00012202,2]
[402946090,1769007045370,-233.5,0.00012329,2]
[402946092,1769007045380,-194.59,0.00012329,2]
[402946093,1769007045389,-162.15,0.00012329,2]
[402946096,1769007045399,-810.8,0.00012329,2]
[402946097,1769007045409,-151.0,0.00012329,2]
[402946099,1769007045420,-151.0,0.00012329,2]
[402946101,1769007045430,-421.8333525,0.00012528,2]
[402946104,1769007045442,-165.1666475,0.00012528,2]
[402946106,1769007045452,-346.2935748,0.00012997,2]
[402946108,1769007045461,-250.0,0.00013084,2]
[402946110,1769007045471,-387.77579999,0.00013097,2]
[402946112,1769007045481,-697.99643999,0.00013097,2]
[402946114,1769007045491,-1240.88255998,0.00013097,2]
[402946116,1769007045500,-1938.87899996,0.00013097,2]
[402946118,1769007045510,-477.38633616,0.00013097,2]
[402946120,1769007045519,-859.29540509,0.00013097,2]
[402946122,1769007045528,-1527.63627572,0.00013097,2]
[402946124,1769007045538,-2386.93168082,0.00013097,2]
[402946126,1769007045547,-151.0,0.00013408,2]
[402946128,1769007045556,-151.0,0.00013408,2]
[402946130,1769007045568,-1183.4014271,0.00013434,2]
[402946132,1769007045577,-2583.3783596,0.00013468,2]
[402946134,1769007045587,-151.0,0.00013508,2]
[402946136,1769007045596,-151.0,0.00013508,2]
[402946138,1769007045605,-151.0,0.00013508,2]
[402946140,1769007045614,-241.895375,0.00013508,2]
[402946141,1769007045623,-151.0,0.0001361,2]
[402946143,1769007045633,-151.0,0.0001361,2]
[402946145,1769007045642,-151.0,0.0001361,2]
[402946147,1769007045651,-245.63081814,0.0001361,2]
[402946149,1769007045660,-500.0,0.00013698,2]
[402946151,1769007045669,-31.41224709,0.00013699,2]
[402946215,1769007046646,-968.58775291,0.00013699,2]
[402946216,1769007046655,-205.375651,0.00013699,2]
[402946217,1769007046664,-155.49968402,0.00013699,2]
[402946218,1769007046674,-823.0,0.00013775,2]
[402946219,1769007046683,-227.04950369,0.00013967,2]
[402946221,1769007046707,-851.31165797,0.00013967,2]
[402946223,1769007046716,-880.87981024,0.00013967,2]
[402946224,1769007046725,-339.93610051,0.00014202,2]
[402946225,1769007046735,-346.29357479,0.00014517,2]
[402946226,1769007046745,-445.202766,0.00014836,2]
[402946227,1769007046755,-2150.738,0.00014836,2]
[402946228,1769007046764,-162.380719,0.00014836,2]
[402946229,1769007046776,-168.3888056,0.00014836,2]
[402946230,1769007046786,-174.61919141,0.00014836,2]
[402946231,1769007046796,-181.08010149,0.00014836,2]
[402946232,1769007046805,-187.78006525,0.00014836,2]
[402946233,1769007046815,-194.72792766,0.00014836,2]
[402946234,1769007046824,-201.93286099,0.00014836,2]
[402946235,1769007046836,-209.40437684,0.00014836,2]
[402946236,1769007046847,-217.15233878,0.00014836,2]
[402946237,1769007046857,-225.18697532,0.00014836,2]
[402946238,1769007046866,-233.51889341,0.00014836,2]
[402946239,1769007046876,-242.15909246,0.00014836,2]
[402946240,1769007046885,-251.11897888,0.00014836,2]
[402946241,1769007046895,-260.4103811,0.00014836,2]
[402946242,1769007046904,-270.0455652,0.00014836,2]
[402946243,1769007046914,-280.03725112,0.00014836,2]
[402946244,1769007046923,-290.39862941,0.00014836,2]
[402946245,1769007046933,-171.64315477,0.00014836,2]
[402946246,1769007046952,-129.50022393,0.00014836,2]
[402946247,1769007046962,-500.0,0.00015,2]
[402946248,1769007046971,-242.0,0.00015,2]